[Event "47th GRE-chT 2019"]
[Site "Patra"]
[Date "2019.07.05"]
[Round "5.15"]
[White "Daulyte-Cornette, Deimante"]
[Black "Grapsa, Georgia"]
[Result "1-0"]
[ECO "B92"]
[WhiteElo "2444"]
[BlackElo "2038"]
[Annotator "NA RC"]
[PlyCount "79"]
[EventDate "2019.07.02"]
[EventCountry "GRE"]
[SourceTitle "playchess.com"]
[Source "ChessBase"]
[SourceQuality "1"]
[TimeControl "5400+30"]

1. e4 {[%emt 0:00:00]} c5 {[%emt 0:00:00]} 2. Nf3 {[%emt 0:00:00]} d6 {[%emt 0:00:00]} 3. d4 {[%emt 0:00:00]} cxd4 {[%emt 0:00:01]} 4. Nxd4 {[%emt 0:00:00]} Nf6 {[%emt 0:00:05]} 5. Nc3 {[%emt 0:00:04]} a6 {[%emt 0:00:04]} 6. Be2 {[%emt 0:00:11]} e5 {[%emt 0:00:05]} 7. Nf3 {[%emt 0:00:10]} Be7 {[%emt 0:00:43]} 8. Bg5 {[%emt 0:00:13]} Nbd7 {[%emt 0:00:26]} 9. a4 {[%emt 0:00:32]} b6 {[%emt 0:01:43]} 10. Nd2 {[%emt 0:01:09]} h6 {[%emt 0:01:17]} 11. Bh4 {[%emt 0:04:01]} Bb7 {[%emt 0:09:00]} 12. Nc4 {[%emt 0:02:01]} g5 {[%emt 0:10:58]} 13. Bg3 {[%emt 0:00:22]} Nc5 {[%emt 0:20:00]} 14. f3 {[%emt 0:04:25]} Qc7 {[%emt 0:04:05]} 15. Qd2 {[%emt 0:10:51]} Rd8 {[%emt 0:10:45]} 16. b4 {[%emt 0:13:41]} Ne6 {[%emt 0:04:44]} 17. Bf2 {[%emt 0:00:27]} Nd4 {[%emt 0:00:18]} 18. Bxd4 {[%emt 0:12:01]} exd4 {[%emt 0:00:06]} 19. Qxd4 {[%emt 0:00:05]} d5 {[%emt 0:00:20]} 20. exd5 {[%emt 0:00:34]} Bxd5 {[%emt 0:01:11]} 21. Nxd5 {[%emt 0:03:50]} Rxd5 {[%emt 0:00:18]} 22. Qxb6 {[%emt 0:03:49]} Qxb6 {[%emt 0:01:08]} 23. Nxb6 {[%emt 0:00:05]} Bxb4+ {[%emt 0:00:09]} 24. Kf1 {[%emt 0:00:27]} Rc5 {[%emt 0:11:50]} 25. Bd3 {[%emt 0:18:04]} O-O {[%emt 0:01:23]} 26. g3 {[%emt 0:00:31]} Rb8 {[%emt 0:02:04]} 27. Nc4 {[%emt 0:00:09]} Nd5 {[%emt 0:05:05]} 28. Kf2 {[%emt 0:05:53]} Bc3 {[%emt 0:03:30]} 29. Ra3 {[%emt 0:00:54]} Re8 {[%emt 0:01:39]} 30. h4 {[%emt 0:03:08]} Bd4+ {[%emt 0:01:09]} 31. Kg2 {[%emt 0:01:24]} a5 {[%emt 0:02:29]} 32. Nd6 {[%emt 0:04:54]} Ne3+ {[%emt 0:04:38]} 33. Kh3 {[%emt 0:00:26]} Re6 {[%emt 0:01:21]} 34. Ne4 {[%emt 0:08:38]} f5 {[%emt 0:02:09]} 35. Nxc5 {[%emt 0:00:55]} g4+ {[%emt 0:00:04]} 36. fxg4 {[%emt 0:01:48]} fxg4+ {[%emt 0:00:03]} 37. Kh2 {[%emt 0:00:02]} Bxc5 {[%emt 0:00:13]} 38. Rc3 {[%emt 0:00:17]} Rf6 {[%emt 0:00:38]} 39. Re1 {[%emt 0:00:41]} Bb6 {[%emt 0:02:25]} 40. Rxe3 {[%emt 0:00:00]} 1-0

[Event "47th GRE-chT 2019"]
[Site "Patra"]
[Date "2019.07.05"]
[Round "5.15"]
[White "Salimova, Nurgyul"]
[Black "Salahidou, Reveka"]
[Result "1-0"]
[ECO "D02"]
[WhiteElo "2416"]
[BlackElo "1971"]
[Annotator "RC"]
[PlyCount "57"]
[EventDate "2019.07.02"]
[EventCountry "GRE"]
[SourceTitle "playchess.com"]
[Source "ChessBase"]
[SourceQuality "1"]
[TimeControl "5400+30"]

1. d4 {[%emt 0:00:00]} d5 {[%emt 0:00:32]} 2. Nf3 {[%emt 0:00:00]} Nf6 {[%emt 0:00:18]} 3. g3 {[%emt 0:00:00]} e6 {[%emt 0:00:28]} 4. Bg2 {[%emt 0:00:03]} a6 {[%emt 0:00:32]} 5. O-O {[%emt 0:02:42]} Nc6 {[%emt 0:00:11]} 6. Re1 {[%emt 0:01:54]} Be7 {[%emt 0:07:03]} 7. Nbd2 {[%emt 0:00:45]} Rb8 {[%emt 0:05:32]} 8. e4 {[%emt 0:02:24]} O-O {[%emt 0:21:39]} 9. e5 {[%emt 0:01:53]} Nd7 {[%emt 0:01:08]} 10. Nf1 {[%emt 0:00:13]} b5 {[%emt 0:01:13]} 11. h4 {[%emt 0:00:12]} Na5 {[%emt 0:03:06]} 12. N1h2 {[%emt 0:03:10]} b4 {[%emt 0:06:01]} 13. h5 {[%emt 0:08:58]} c5 {[%emt 0:03:06]} 14. h6 {[%emt 0:02:07]} g6 {[%emt 0:00:10]} 15. Ng4 {[%emt 0:09:25]} Nc6 {[%emt 0:18:11]} 16. dxc5 {[%emt 0:04:09]} Bxc5 {[%emt 0:03:02]} 17. Bg5 {[%emt 0:04:16]} Qb6 {[%emt 0:06:02]} 18. Qd2 {[%emt 0:02:19]} Ne7 {[%emt 0:09:46]} 19. Nh4 {[%emt 0:03:05]} Bb7 {[%emt 0:03:37]} 20. c3 {[%emt 0:08:15]} Nf5 {[%emt 0:02:12]} 21. Nxf5 {[%emt 0:13:28]} exf5 {[%emt 0:00:10]} 22. Nh2 {[%emt 0:00:12]} d4 {[%emt 0:05:16]} 23. cxd4 {[%emt 0:02:12]} Bxd4 {[%emt 0:00:04]} 24. Rad1 {[%emt 0:04:40]} Bxe5 {[%emt 0:02:07]} 25. Be3 {[%emt 0:05:48]} Nc5 {[%emt 0:00:26]} 26. Bxb7 {[%emt 0:00:40]} Rxb7 {[%emt 0:00:09]} 27. Qd5 {[%emt 0:00:09]} Qf6 {[%emt 0:00:58]} 28. Bxc5 {[%emt 0:00:15]} Rb5 {[%emt 0:00:30]} 29. Qxe5 {[%emt 0:00:18]} 1-0

[Event "47th GRE-chT 2019"]
[Site "Patra"]
[Date "2019.07.05"]
[Round "5.16"]
[White "Petraki, Evaggelia"]
[Black "Kalyva, Kyriaki"]
[Result "1-0"]
[ECO "B75"]
[WhiteElo "1785"]
[BlackElo "1869"]
[Annotator "NA RC"]
[PlyCount "63"]
[EventDate "2019.07.02"]
[EventCountry "GRE"]
[SourceTitle "playchess.com"]
[Source "ChessBase"]
[SourceQuality "1"]
[TimeControl "5400+30"]

1. e4 {[%emt 0:00:00]} c5 {[%emt 0:00:00]} 2. Nf3 {[%emt 0:00:00]} d6 {[%emt 0:00:00]} 3. d4 {[%emt 0:00:00]} cxd4 {[%emt 0:00:00]} 4. Nxd4 {[%emt 0:00:00]} Nf6 {[%emt 0:00:00]} 5. Nc3 {[%emt 0:00:00]} g6 {[%emt 0:00:08]} 6. f3 {[%emt 0:00:01]} Bg7 {[%emt 0:00:15]} 7. Be3 {[%emt 0:00:27]} a6 {[%emt 0:01:37]} 8. Qd2 {[%emt 0:00:28]} h5 {[%emt 0:05:43]} 9. Be2 {[%emt 0:03:03]} Nbd7 {[%emt 0:05:09]} 10. h3 {[%emt 0:10:53]} b5 {[%emt 0:01:40]} 11. a3 {[%emt 0:00:32]} Bb7 {[%emt 0:06:25]} 12. O-O {[%emt 0:06:08]} Rc8 {[%emt 0:04:32]} 13. Rac1 {[%emt 0:17:57]} Ne5 {[%emt 0:00:43]} 14. b3 {[%emt 0:04:12]} Ned7 {[%emt 0:14:26]} 15. Rfd1 {[%emt 0:18:39]} O-O {[%emt 0:01:02]} 16. Bf1 {[%emt 0:07:49]} Qc7 {[%emt 0:07:39]} 17. Nb1 {[%emt 0:03:31]} e5 {[%emt 0:00:28]} 18. Ne2 {[%emt 0:00:14]} d5 {[%emt 0:07:54]} 19. c4 {[%emt 0:05:14]} bxc4 {[%emt 0:01:00]} 20. exd5 {[%emt 0:00:31]} Nxd5 {[%emt 0:06:08]} 21. Rxc4 {[%emt 0:00:12]} Qb8 {[%emt 0:02:39]} 22. Bh6 {[%emt 0:03:14]} Bxh6 {[%emt 0:00:04]} 23. Qxh6 {[%emt 0:00:18]} Nc5 {[%emt 0:02:32]} 24. Ng3 {[%emt 0:01:28]} Ne6 {[%emt 0:05:37]} 25. Ne4 {[%emt 0:07:57]} Qa7+ {[%emt 0:02:01]} 26. Kh2 {[%emt 0:02:50]} Nef4 {[%emt 0:13:16]} 27. Ng5 {[%emt 0:00:11]} Nf6 {[%emt 0:04:51]} 28. Rd6 {[%emt 0:00:25]} Ne6 {[%emt 0:00:49]} 29. Nxe6 {[%emt 0:00:05]} fxe6 {[%emt 0:00:15]} 30. Qxg6+ {[%emt 0:00:05]} Kh8 {[%emt 0:01:40]} 31. Rxe6 {[%emt 0:05:20]} Nd5 {[%emt 0:01:10]} 32. Qxh5+ {[%emt 0:01:16]} 1-0

[Event "47th GRE-chT 2019"]
[Site "Patra"]
[Date "2019.07.05"]
[Round "5.16"]
[White "Stratigi, Evangelia"]
[Black "Batzoli, Maria"]
[Result "1/2-1/2"]
[ECO "B10"]
[WhiteElo "1624"]
[BlackElo "1390"]
[Annotator "NA RC"]
[PlyCount "96"]
[EventDate "2019.07.02"]
[EventCountry "GRE"]
[SourceTitle "playchess.com"]
[Source "ChessBase"]
[SourceQuality "1"]
[TimeControl "5400+30"]

1. e4 c6 2. Nf3 d5 3. exd5 cxd5 4. Ne5 Nf6 5. d4 g6 6. c3 Bg7 7. Bd3 O-O 8. O-O Nbd7 9. f4 Ne8 10. Nd2 Nd6 11. Qf3 Nf6 12. Re1 Bf5 13. Bxf5 Nxf5 14. Nd3 e6 15. g4 Nd6 16. Nf2 b6 17. Qh3 h5 18. g5 Nfe8 19. Nf3 Nf5 20. Ne5 Ned6 21. b3 Qc7 22. Ba3 Rfc8 23. Bxd6 Nxd6 24. Rac1 Bxe5 25. dxe5 Nf5 26. Qd3 Qc5 27. Re2 Rc7 28. Kh1 Rac8 29. Nd1 b5 30. Rb1 b4 31. Rc1 a5 32. c4 Qd4 33. Qxd4 Nxd4 34. Rd2 Nb5 35. Nb2 Na3 36. Na4 Rc6 37. c5 Nb5 38. Rdc2 Nc3 39. Kg2 Nxa4 40. bxa4 Kf8 41. Kf3 Ke7 42. Ke3 Kd7 43. Kd4 R6c7 44. h4 Kc6 45. Rb2 Rb7 46. Rcb1 Rcb8 47. Rb3 Rc7 48. R1b2 Rcb7 1/2-1/2

[Event "47th GRE-chT 2019"]
[Site "Patra"]
[Date "2019.07.05"]
[Round "5.17"]
[White "Kyriakidou, Chrysa"]
[Black "Tsivelekidou, Anthoula Elpida"]
[Result "0-1"]
[ECO "A46"]
[WhiteElo "1338"]
[BlackElo "1298"]
[Annotator "NA RC"]
[PlyCount "112"]
[EventDate "2019.07.02"]
[EventCountry "GRE"]
[SourceTitle "playchess.com"]
[Source "ChessBase"]
[SourceQuality "1"]
[TimeControl "5400+30"]

1. d4 {[%emt 0:00:00]} e6 {[%emt 0:00:00]} 2. Bf4 {[%emt 0:00:00]} c5 {[%emt 0:00:00]} 3. e3 {[%emt 0:00:00]} Nf6 {[%emt 0:00:00]} 4. Nf3 {[%emt 0:00:02]} Qb6 {[%emt 0:00:13]} 5. Na3 {[%emt 0:03:02]} a6 {[%emt 0:13:16]} 6. Nc4 {[%emt 0:00:15]} Qd8 {[%emt 0:00:26]} 7. Nd6+ {[%emt 0:06:33]} Bxd6 {[%emt 0:01:06]} 8. Bxd6 {[%emt 0:00:08]} cxd4 {[%emt 0:00:43]} 9. exd4 {[%emt 0:05:27]} Qb6 {[%emt 0:02:43]} 10. Ba3 {[%emt 0:00:16]} Nc6 {[%emt 0:00:54]} 11. c3 {[%emt 0:00:45]} Nd5 {[%emt 0:00:53]} 12. Bc4 {[%emt 0:05:09]} Nce7 {[%emt 0:02:56]} 13. O-O {[%emt 0:00:42]} d6 {[%emt 0:02:53]} 14. Re1 {[%emt 0:00:47]} O-O {[%emt 0:03:02]} 15. Ng5 {[%emt 0:11:35]} Nf6 {[%emt 0:04:39]} 16. Qf3 {[%emt 0:10:19]} Rd8 {[%emt 0:06:34]} 17. Re3 {[%emt 0:09:07]} Qc6 {[%emt 0:02:46]} 18. Qe2 {[%emt 0:06:11]} Ng6 {[%emt 0:05:02]} 19. g3 {[%emt 0:09:07]} b5 {[%emt 0:01:14]} 20. Bd3 {[%emt 0:00:12]} Bb7 {[%emt 0:00:17]} 21. Ne4 {[%emt 0:00:27]} Ne8 {[%emt 0:04:32]} 22. Qf3 {[%emt 0:06:11]} Nc7 {[%emt 0:01:54]} 23. Ng5 {[%emt 0:10:55]} Qxf3 {[%emt 0:00:24]} 24. Nxf3 {[%emt 0:00:07]} Nd5 {[%emt 0:00:19]} 25. Ree1 {[%emt 0:00:58]} Nxc3 {[%emt 0:00:58]} 26. bxc3 {[%emt 0:00:07]} Bxf3 {[%emt 0:00:04]} 27. Re3 {[%emt 0:00:32]} Bd5 {[%emt 0:01:49]} 28. h4 {[%emt 0:00:04]} Ne7 {[%emt 0:03:06]} 29. g4 {[%emt 0:02:31]} Nc8 {[%emt 0:00:32]} 30. f4 {[%emt 0:00:47]} Nb6 {[%emt 0:01:38]} 31. Kf2 {[%emt 0:04:08]} Rac8 {[%emt 0:02:13]} 32. Rae1 {[%emt 0:00:23]} Bxa2 {[%emt 0:01:14]} 33. f5 {[%emt 0:00:11]} Bd5 {[%emt 0:01:36]} 34. Bb4 {[%emt 0:00:34]} Nc4 {[%emt 0:22:32]} 35. Bxc4 {[%emt 0:00:14]} Bxc4 {[%emt 0:00:26]} 36. Ra1 {[%emt 0:00:26]} Rc6 {[%emt 0:01:04]} 37. Kg3 {[%emt 0:01:03]} Bd5 {[%emt 0:01:37]} 38. Kf4 {[%emt 0:00:11]} Kf8 {[%emt 0:01:43]} 39. Ra5 {[%emt 0:00:49]} Re8 {[%emt 0:03:11]} 40. g5 {[%emt 0:00:00]} exf5 {[%emt 0:00:00]} 41. Rxe8+ {[%emt 0:00:00]} Kxe8 {[%emt 0:00:00]} 42. Kxf5 {[%emt 0:00:00]} Kd7 {[%emt 0:00:00]} 43. h5 {[%emt 0:00:00]} Be6+ {[%emt 0:00:00]} 44. Kf4 {[%emt 0:00:00]} Ke7 {[%emt 0:00:00]} 45. Ra1 {[%emt 0:00:00]} Bc8 {[%emt 0:00:00]} 46. Re1+ {[%emt 0:00:00]} Kd7 {[%emt 0:00:00]} 47. Ra1 {[%emt 0:00:00]} Rc7 {[%emt 0:00:00]} 48. Ke4 {[%emt 0:00:00]} Bb7+ {[%emt 0:00:00]} 49. Kf5 {[%emt 0:00:00]} Rc8 {[%emt 0:00:00]} 50. Re1 {[%emt 0:00:00]} Ra8 {[%emt 0:00:00]} 51. Ra1 {[%emt 0:00:00]} Re8 {[%emt 0:00:00]} 52. h6 {[%emt 0:00:00]} gxh6 {[%emt 0:00:00]} 53. gxh6 {[%emt 0:00:00]} Re6 {[%emt 0:00:00]} 54. Kg5 {[%emt 0:00:00]} Rg6+ {[%emt 0:00:00]} 55. Kh5 {[%emt 0:00:00]} Bf3+ {[%emt 0:00:00]} 56. Kh4 {[%emt 0:00:00]} Rxh6+ {[%emt 0:00:00]} 0-1

[Event "47th GRE-chT 2019"]
[Site "Patra"]
[Date "2019.07.05"]
[Round "5.17"]
[White "Nikolaki, Dimitria"]
[Black "Kaliontzaki, Argyro Evanthia"]
[Result "0-1"]
[ECO "A46"]
[WhiteElo "1323"]
[BlackElo "1324"]
[Annotator "NA RC"]
[PlyCount "134"]
[EventDate "2019.07.02"]
[EventCountry "GRE"]
[SourceTitle "playchess.com"]
[Source "ChessBase"]
[SourceQuality "1"]
[TimeControl "5400+30"]

1. d4 {[%emt 0:00:00]} Nf6 {[%emt 0:00:00]} 2. Nf3 {[%emt 0:00:00]} e6 {[%emt 0:00:00]} 3. Bf4 {[%emt 0:00:00]} c5 {[%emt 0:00:00]} 4. e3 {[%emt 0:00:00]} cxd4 {[%emt 0:00:04]} 5. exd4 {[%emt 0:00:00]} b6 {[%emt 0:00:17]} 6. Bd3 {[%emt 0:00:43]} Bb7 {[%emt 0:00:52]} 7. Nbd2 {[%emt 0:00:44]} Be7 {[%emt 0:01:33]} 8. h3 {[%emt 0:00:42]} O-O {[%emt 0:01:22]} 9. O-O {[%emt 0:00:06]} d6 {[%emt 0:01:13]} 10. Bg3 {[%emt 0:01:06]} Re8 {[%emt 0:04:31]} 11. Re1 {[%emt 0:00:20]} a6 {[%emt 0:01:53]} 12. a4 {[%emt 0:00:18]} Bf8 {[%emt 0:01:36]} 13. Bf1 {[%emt 0:02:27]} Nbd7 {[%emt 0:02:10]} 14. a5 {[%emt 0:01:00]} b5 {[%emt 0:04:55]} 15. c4 {[%emt 0:02:17]} Bc6 {[%emt 0:06:18]} 16. d5 {[%emt 0:06:45]} exd5 {[%emt 0:04:51]} 17. Nd4 {[%emt 0:00:53]} Rxe1 {[%emt 0:08:55]} 18. Qxe1 {[%emt 0:00:04]} Qc7 {[%emt 0:04:32]} 19. cxb5 {[%emt 0:04:50]} Bxb5 {[%emt 0:04:04]} 20. Bxb5 {[%emt 0:02:57]} axb5 {[%emt 0:00:05]} 21. Nxb5 {[%emt 0:00:41]} Qc5 {[%emt 0:04:21]} 22. Qf1 {[%emt 0:03:05]} Rb8 {[%emt 0:04:49]} 23. Nc3 {[%emt 0:20:10]} Qb4 {[%emt 0:16:41]} 24. Qd3 {[%emt 0:11:42]} Nc5 {[%emt 0:07:11]} 25. Qe2 {[%emt 0:08:06]} d4 {[%emt 0:09:27]} 26. Nce4 {[%emt 0:12:50]} Nfxe4 {[%emt 0:01:43]} 27. Nxe4 {[%emt 0:00:09]} d3 {[%emt 0:01:19]} 28. Qe3 {[%emt 0:15:47]} Qxe4 {[%emt 0:00:51]} 29. Qxe4 {[%emt 0:00:44]} Nxe4 {[%emt 0:00:05]} 30. Bf4 {[%emt 0:01:58]} Nc5 {[%emt 0:04:29]} 31. Be3 {[%emt 0:01:32]} Nb3 {[%emt 0:01:57]} 32. Rd1 {[%emt 0:01:40]} Nxa5 {[%emt 0:00:42]} 33. Rxd3 {[%emt 0:00:11]} Rxb2 {[%emt 0:01:15]} 34. Rc3 {[%emt 0:01:35]} Rb8 {[%emt 0:01:09]} 35. Bf4 {[%emt 0:00:59]} f6 {[%emt 0:01:10]} 36. Rd3 {[%emt 0:00:22]} Rd8 {[%emt 0:00:18]} 37. Rd5 {[%emt 0:00:35]} Nc6 {[%emt 0:00:17]} 38. Kf1 {[%emt 0:01:05]} Kf7 {[%emt 0:00:35]} 39. Ke2 {[%emt 0:00:34]} Ke6 {[%emt 0:00:11]} 40. Rd3 {[%emt 0:00:00]} d5 {[%emt 0:00:00]} 41. Re3+ {[%emt 0:00:00]} Kf7 {[%emt 0:00:00]} 42. Kd3 {[%emt 0:00:00]} Bd6 {[%emt 0:00:00]} 43. Bxd6 {[%emt 0:00:00]} Rxd6 {[%emt 0:00:00]} 44. Re1 {[%emt 0:00:00]} d4 {[%emt 0:00:00]} 45. Rb1 {[%emt 0:00:00]} Ne5+ {[%emt 0:00:00]} 46. Kd2 {[%emt 0:00:00]} d3 {[%emt 0:00:00]} 47. Rc1 {[%emt 0:00:00]} Rc6 {[%emt 0:00:00]} 48. Rxc6 {[%emt 0:00:00]} Nxc6 {[%emt 0:00:00]} 49. Kxd3 {[%emt 0:00:00]} Ke6 {[%emt 0:00:00]} 50. Ke4 {[%emt 0:00:00]} f5+ {[%emt 0:00:00]} 51. Kf4 {[%emt 0:00:00]} Kf6 {[%emt 0:00:00]} 52. h4 {[%emt 0:00:00]} Ne5 {[%emt 0:00:00]} 53. g3 {[%emt 0:00:00]} Nd3+ {[%emt 0:00:00]} 54. Ke3 {[%emt 0:00:00]} Nc5 {[%emt 0:00:00]} 55. f3 {[%emt 0:00:00]} g5 {[%emt 0:00:00]} 56. hxg5+ {[%emt 0:00:00]} Kxg5 {[%emt 0:00:00]} 57. Kd4 {[%emt 0:00:00]} f4 {[%emt 0:00:00]} 58. g4 {[%emt 0:00:00]} Nd7 {[%emt 0:00:00]} 59. Kd3 {[%emt 0:00:00]} Nf6 {[%emt 0:00:21]} 60. Ke2 {[%emt 0:00:00]} Nxg4 {[%emt 0:00:50]} 61. fxg4 {[%emt 0:00:00]} Kxg4 {[%emt 0:00:05]} 62. Kf2 {[%emt 0:00:00]} h5 {[%emt 0:00:10]} 63. Kg2 {[%emt 0:00:00]} h4 {[%emt 0:00:08]} 64. Kh2 {[%emt 0:00:00]} h3 {[%emt 0:00:38]} 65. Kg1 {[%emt 0:00:00]} f3 {[%emt 0:01:08]} 66. Kh1 {[%emt 0:00:00]} f2 {[%emt 0:00:25]} 67. Kh2 {[%emt 0:00:00]} Kf3 {[%emt 0:00:08]} 0-1

[Event "47th GRE-chT 2019"]
[Site "Patra"]
[Date "2019.07.05"]
[Round "5.18"]
[White "Spyropoulos, Nikolaos"]
[Black "Nikolakis, Panagiotis Marios"]
[Result "0-1"]
[ECO "B84"]
[WhiteElo "2404"]
[BlackElo "1911"]
[Annotator "NA RC"]
[PlyCount "80"]
[EventDate "2019.07.02"]
[EventCountry "GRE"]
[SourceTitle "playchess.com"]
[Source "ChessBase"]
[SourceQuality "1"]
[TimeControl "5400+30"]

1. e4 {[%emt 0:00:00]} c5 {[%emt 0:00:11]} 2. Nf3 {[%emt 0:00:00]} d6 {[%emt 0:00:04]} 3. d4 {[%emt 0:00:00]} cxd4 {[%emt 0:00:06]} 4. Nxd4 {[%emt 0:00:00]} Nf6 {[%emt 0:00:06]} 5. Nc3 {[%emt 0:00:00]} a6 {[%emt 0:00:10]} 6. Be2 {[%emt 0:00:06]} e6 {[%emt 0:00:14]} 7. Be3 {[%emt 0:00:36]} Qc7 {[%emt 0:00:07]} 8. g4 {[%emt 0:01:34]} d5 {[%emt 0:00:51]} 9. exd5 {[%emt 0:01:52]} Bb4 {[%emt 0:00:12]} 10. dxe6 {[%emt 0:02:17]} Bxc3+ {[%emt 0:00:23]} 11. bxc3 {[%emt 0:00:06]} Qxc3+ {[%emt 0:00:07]} 12. Kf1 {[%emt 0:00:30]} fxe6 {[%emt 0:00:06]} 13. Rg1 {[%emt 0:07:14]} O-O {[%emt 0:03:16]} 14. Rg3 {[%emt 0:06:05]} Qc7 {[%emt 0:32:23]} 15. Qd3 {[%emt 0:13:39]} Qe5 {[%emt 0:17:44]} 16. Rd1 {[%emt 0:13:41]} Nbd7 {[%emt 0:04:16]} 17. Nb3 {[%emt 0:07:42]} Nd5 {[%emt 0:06:45]} 18. Bd4 {[%emt 0:09:45]} Qg5 {[%emt 0:07:45]} 19. Be3 {[%emt 0:10:33]} Qh4 {[%emt 0:03:16]} 20. Kg1 {[%emt 0:02:09]} Ne5 {[%emt 0:00:53]} 21. Qe4 {[%emt 0:04:59]} Nc3 {[%emt 0:01:24]} 22. Qxe5 {[%emt 0:00:16]} Nxe2+ {[%emt 0:00:17]} 23. Kg2 {[%emt 0:00:42]} Nxg3 {[%emt 0:00:38]} 24. hxg3 {[%emt 0:00:10]} Qxg4 {[%emt 0:00:24]} 25. Rd6 {[%emt 0:01:39]} Qf3+ {[%emt 0:07:26]} 26. Kg1 {[%emt 0:00:40]} Qf5 {[%emt 0:04:33]} 27. Qc3 {[%emt 0:03:50]} e5 {[%emt 0:05:18]} 28. Nc5 {[%emt 0:05:05]} Qf3 {[%emt 0:04:00]} 29. Qc4+ {[%emt 0:02:13]} Kh8 {[%emt 0:00:07]} 30. Qh4 {[%emt 0:00:04]} Bf5 {[%emt 0:00:34]} 31. Nd3 {[%emt 0:04:15]} Rae8 {[%emt 0:01:13]} 32. Bc5 {[%emt 0:01:46]} Be4 {[%emt 0:00:34]} 33. Ne1 {[%emt 0:00:04]} Qe2 {[%emt 0:00:10]} 34. Ng2 {[%emt 0:00:38]} Qxc2 {[%emt 0:00:17]} 35. Be3 {[%emt 0:02:37]} Bc6 {[%emt 0:00:15]} 36. Rd2 {[%emt 0:00:39]} Qb1+ {[%emt 0:00:45]} 37. Kh2 {[%emt 0:00:02]} Qf1 {[%emt 0:00:30]} 38. Qh3 {[%emt 0:00:22]} Qxg2+ {[%emt 0:00:12]} 39. Qxg2 {[%emt 0:00:02]} Bxg2 {[%emt 0:00:08]} 40. Kxg2 {[%emt 0:00:00]} Rd8 {[%emt 0:00:00]} 0-1

[Event "47th GRE-chT 2019"]
[Site "Patra"]
[Date "2019.07.05"]
[Round "5.18"]
[White "Tsaknakis, Zisis"]
[Black "Androutsopoulos-Agiotatos, Vasil"]
[Result "1-0"]
[ECO "D02"]
[WhiteElo "2263"]
[BlackElo "2063"]
[Annotator "NA"]
[PlyCount "121"]
[EventDate "2019.07.02"]
[EventCountry "GRE"]
[SourceTitle "playchess.com"]
[Source "ChessBase"]
[SourceQuality "1"]
[TimeControl "5400+30"]

1. Nf3 {[%emt 0:00:00]} Nf6 {[%emt 0:01:11]} 2. g3 {[%emt 0:00:00]} g6 {[%emt 0:00:04]} 3. Bg2 {[%emt 0:00:00]} Bg7 {[%emt 0:00:08]} 4. O-O {[%emt 0:00:00]} O-O {[%emt 0:00:04]} 5. d4 {[%emt 0:00:06]} d5 {[%emt 0:00:03]} 6. c3 {[%emt 0:12:55]} Nbd7 {[%emt 0:00:16]} 7. Bf4 {[%emt 0:05:10]} c6 {[%emt 0:06:05]} 8. Qc1 {[%emt 0:02:21]} Qb6 {[%emt 0:01:27]} 9. b3 {[%emt 0:02:54]} Ne4 {[%emt 0:00:58]} 10. Bh6 {[%emt 0:11:25]} c5 {[%emt 0:05:10]} 11. Bxg7 {[%emt 0:00:02]} Kxg7 {[%emt 0:10:07]} 12. c4 {[%emt 0:17:31]} dxc4 {[%emt 0:23:43]} 13. Qxc4 {[%emt 0:05:31]} Qf6 {[%emt 0:07:23]} 14. Qc2 {[%emt 0:06:07]} Nd6 {[%emt 0:07:14]} 15. Nc3 {[%emt 0:11:18]} cxd4 {[%emt 0:00:03]} 16. Nd5 {[%emt 0:01:29]} Qf5 {[%emt 0:02:08]} 17. Qxf5 {[%emt 0:00:16]} Nxf5 {[%emt 0:00:01]} 18. g4 {[%emt 0:03:53]} Nd6 {[%emt 0:02:08]} 19. Nxe7 {[%emt 0:00:37]} d3 {[%emt 0:04:56]} 20. Rfd1 {[%emt 0:07:45]} Nc5 {[%emt 0:02:47]} 21. b4 {[%emt 0:00:03]} Nce4 {[%emt 0:00:06]} 22. Nxc8 {[%emt 0:01:08]} Rfxc8 {[%emt 0:00:17]} 23. Rxd3 {[%emt 0:02:54]} a5 {[%emt 0:10:43]} 24. Nd2 {[%emt 0:02:05]} Nxd2 {[%emt 0:00:05]} 25. Rxd2 {[%emt 0:01:43]} Nc4 {[%emt 0:00:02]} 26. Rd7 {[%emt 0:03:42]} axb4 {[%emt 0:02:16]} 27. Rxb7 {[%emt 0:00:43]} Ra4 {[%emt 0:01:21]} 28. Rc1 {[%emt 0:00:58]} Nd6 {[%emt 0:00:14]} 29. Rxc8 {[%emt 0:00:01]} Nxc8 {[%emt 0:00:27]} 30. Bd5 {[%emt 0:01:49]} Nd6 {[%emt 0:00:51]} 31. Rb6 {[%emt 0:00:25]} b3 {[%emt 0:00:59]} 32. axb3 {[%emt 0:00:05]} Rxg4+ {[%emt 0:00:06]} 33. Kf1 {[%emt 0:00:14]} Nf5 {[%emt 0:00:16]} 34. Rb7 {[%emt 0:00:30]} Rd4 {[%emt 0:04:04]} 35. Rxf7+ {[%emt 0:00:10]} Kh6 {[%emt 0:01:25]} 36. e4 {[%emt 0:00:26]} Nd6 {[%emt 0:00:03]} 37. Re7 {[%emt 0:01:41]} Nb5 {[%emt 0:03:11]} 38. Bg8 {[%emt 0:00:13]} Nc3 {[%emt 0:01:14]} 39. Rxh7+ {[%emt 0:00:01]} Kg5 {[%emt 0:00:00]} 40. Bd5 {[%emt 0:00:00]} Rd1+ {[%emt 0:00:00]} 41. Kg2 {[%emt 0:00:00]} Nxd5 {[%emt 0:00:00]} 42. exd5 {[%emt 0:00:00]} Rxd5 {[%emt 0:00:00]} 43. Rh3 {[%emt 0:00:00]} Rd2 {[%emt 0:00:00]} 44. Rc3 {[%emt 0:00:00]} Rb2 {[%emt 0:00:00]} 45. Kf3 {[%emt 0:00:00]} Kf5 {[%emt 0:00:00]} 46. Rc5+ {[%emt 0:00:00]} Kf6 {[%emt 0:00:00]} 47. Rb5 {[%emt 0:00:00]} Ke6 {[%emt 0:00:00]} 48. Kg3 {[%emt 0:00:00]} Kf6 {[%emt 0:00:00]} 49. Rb8 {[%emt 0:00:00]} Ke6 {[%emt 0:00:00]} 50. b4 {[%emt 0:00:00]} Kf5 {[%emt 0:00:00]} 51. b5 {[%emt 0:00:00]} Rb3+ {[%emt 0:00:00]} 52. Kg2 {[%emt 0:00:00]} Kf6 {[%emt 0:00:00]} 53. b6 {[%emt 0:00:00]} Rb4 {[%emt 0:00:00]} 54. Kg3 {[%emt 0:01:29]} g5 {[%emt 0:02:03]} 55. b7 {[%emt 0:00:09]} Kg7 {[%emt 0:00:05]} 56. f3 {[%emt 0:00:11]} Kh7 {[%emt 0:00:52]} 57. h4 {[%emt 0:01:25]} gxh4+ {[%emt 0:00:01]} 58. Kh3 {[%emt 0:00:16]} Kg7 {[%emt 0:00:03]} 59. f4 {[%emt 0:03:52]} Rxf4 {[%emt 0:01:05]} 60. Rc8 {[%emt 0:00:07]} Rf3+ {[%emt 0:01:05]} 61. Kxh4 {[%emt 0:00:36]} 1-0